bitfinex/quotes_SOLUSD_20250410
["timestamp","ask_amount","ask_price","bid_price","bid_amount"]
[1744328631893,0.03,112.78,112.77,43.17185761]
[1744328634191,0.03,112.78,112.77,28.8676]
[1744328639394,0.03,112.78,112.77,20.0]
[1744328639873,0.03,112.78,112.77,28.8676]
[1744328640189,0.03,112.78,112.77,20.0]
[1744328642682,0.03,112.78,112.77,28.8676]
[1744328644493,0.03,112.78,112.77,61.82150647]
[1744328647389,0.03,112.78,112.77,61.96366804]
[1744328651800,0.03,112.78,112.77,47.65941043]
[1744328652007,0.03,112.78,112.77,61.96366804]
[1744328653008,0.03,112.78,112.77,47.51724886]
[1744328653813,0.03,112.78,112.77,61.82150647]
[1744328654622,0.03,112.78,112.77,61.96366804]
[1744328661613,0.03,112.78,112.77,70.14366804]
[1744328673038,0.03,112.78,112.77,55.83941043]
[1744328673326,0.03,112.78,112.77,70.14366804]
[1744328675125,0.03,112.78,112.77,55.69724886]
[1744328676008,0.03,112.78,112.77,70.00150647]
[1744328676931,0.03,112.78,112.77,55.69724886]
[1744328678131,0.03,112.78,112.77,70.00150647]
[1744328678430,0.03,112.78,112.77,55.69724886]
[1744328678633,0.03,112.78,112.77,70.00150647]
[1744328681133,0.03,112.78,112.77,55.69724886]
[1744328688742,0.03,112.78,112.77,70.00150647]
[1744328693940,0.03,112.78,112.77,28.18]
[1744328695551,0.03,112.78,112.77,51.35185761]
[1744328697461,0.03,112.78,112.77,37.0476]
[1744328698461,0.03,112.78,112.77,28.18]
[1744328700057,0.03,112.78,112.77,20.0]
[1744328700256,0.03,112.78,112.76,8.18]
[1744328700457,0.03,112.78,112.73,346.10392173]
[1744328700458,15.90835761,112.77,112.73,346.10392173]
[1744328700659,14.30425761,112.76,112.73,346.10392173]
[1744328700849,14.30425761,112.75,112.73,22.10392173]
[1744328701357,14.30425761,112.76,112.73,22.10392173]
[1744328701743,14.30425761,112.75,112.73,22.10392173]
[1744328702568,23.17315761,112.76,112.73,22.10392173]
[1744328702747,24.77625761,112.77,112.73,42.10392173]
[1744328702952,1.6041,112.77,112.74,14.30425761]
[1744328703471,1.6041,112.77,112.73,51.35495761]
[1744328704869,1.6041,112.77,112.74,14.30425761]
[1744328705966,1.6041,112.77,112.73,37.0507]
[1744328706174,1.6041,112.77,112.73,51.35495761]
[1744328708677,24.77605761,112.77,112.73,42.48425761]
[1744328708853,24.77605761,112.77,112.73,28.18]
[1744328709053,14.30425761,112.76,112.73,28.18]
[1744328709275,1.6041,112.77,112.73,37.0504]
[1744328709464,10.4717,112.77,112.73,51.35465761]
[1744328709666,24.77595761,112.77,112.73,51.35465761]
[1744328709860,24.77595761,112.77,112.73,37.0504]
[1744328711276,10.4717,112.77,112.73,51.35465761]
[1744328711866,24.77595761,112.77,112.73,51.35465761]
[1744328715689,24.77595761,112.77,112.73,37.0504]
[1744328715984,14.30425761,112.76,112.73,28.18]
[1744328716366,10.4717,112.77,112.73,28.18]
[1744328716567,14.30425761,112.76,112.73,28.18]
[1744328717684,14.30425761,112.75,112.73,8.18]
[1744328717861,1.5481,112.73,112.71,0.063]
[1744328718066,14.30425761,112.72,112.71,0.063]
[1744328718479,24.72335761,112.73,112.71,0.063]
[1744328718782,14.30425761,112.72,112.71,0.063]
[1744328718970,24.72335761,112.73,112.71,0.063]
[1744328719980,14.30425761,112.72,112.71,0.063]
[1744328720183,14.73074232,112.72,112.71,0.063]
[1744328720577,14.30425761,112.72,112.71,0.063]
[1744328721287,24.72335761,112.73,112.71,0.063]
[1744328721777,10.4191,112.73,112.71,0.063]
[1744328724993,23.17435761,112.74,112.71,0.063]
[1744328726973,14.30425761,112.73,112.71,0.063]
[1744328727474,14.30425761,112.74,112.71,0.063]
[1744328728183,23.17445761,112.74,112.71,0.063]
[1744328737208,14.30425761,112.73,112.71,0.063]
[1744328737415,16.38034232,112.72,112.71,0.063]
[1744328737592,35.02999118,112.72,112.71,0.063]
[1744328739316,43.90149118,112.72,112.71,0.063]
[1744328740288,43.90149118,112.72,112.71,0.0001]
[1744328744031,43.90149118,112.72,112.7,0.063]
[1744328744197,43.90149118,112.72,112.68,0.063]
[1744328744198,14.73074232,112.69,112.68,0.063]
[1744328745098,14.73074232,112.69,112.66,0.063]
[1744328745099,0.42648471,112.68,112.66,0.063]
[1744328745300,23.17965761,112.67,112.66,0.063]
[1744328745615,23.60614232,112.67,112.66,0.063]
[1744328746113,14.30425761,112.69,112.66,0.063]
[1744328746322,8.8734,112.7,112.66,34.36725761]
[1744328746622,14.30425761,112.72,112.68,34.30425761]
[1744328747099,14.30425761,112.72,112.68,20.0]
[1744328747424,23.17575761,112.72,112.68,34.30425761]
[1744328748302,23.17535761,112.73,112.68,43.17885761]
[1744328748494,8.8702,112.74,112.7,34.30425761]
[1744328748695,23.17445761,112.74,112.7,34.30425761]
[1744328748905,23.17355761,112.75,112.7,34.30425761]
[1744328749419,23.17355761,112.75,112.7,43.17695761]
[1744328750520,23.17295761,112.76,112.72,34.30425761]
[1744328751116,23.17295761,112.76,112.72,20.0]
[1744328751424,0.17216157,112.78,112.73,22.46425761]
[1744328751719,23.20135761,112.78,112.74,34.30425761]
[1744328751914,23.20135761,112.78,112.74,20.0]
[1744328752995,23.20135761,112.78,112.74,34.30425761]
[1744328753219,0.03,112.78,112.74,35.84155761]
[1744328753416,0.03,112.78,112.76,20.0]
[1744328754706,8.8968,112.78,112.74,35.84155761]
[1744328755729,23.20105761,112.78,112.74,35.84155761]
[1744328756615,23.20105761,112.78,112.74,21.5373]
[1744328756800,14.30425761,112.77,112.73,8.16]
[1744328757120,14.30425761,112.76,112.72,20.0]
[1744328758229,23.17335761,112.76,112.72,20.0]
[1744328759411,22.30306177,112.76,112.72,42.30306177]
[1744328761531,22.30306177,112.75,112.7,50.46306177]
[1744328761711,31.17296177,112.75,112.7,59.33616177]
[1744328762427,8.8686,112.76,112.72,42.30306177]
[1744328764127,31.17166177,112.76,112.72,42.30306177]
[1744328764619,22.30306177,112.75,112.72,20.0]
[1744328764806,8.8686,112.76,112.72,42.30306177]
[1744328765012,31.17096177,112.77,112.73,22.30306177]
[1744328765209,31.17096177,112.77,112.72,42.30306177]
[1744328765402,31.17096177,112.77,112.73,8.16]
[1744328767222,31.17096177,112.77,112.72,42.30306177]
[1744328767421,31.17096177,112.77,112.74,20.0]
[1744328767641,8.8679,112.77,112.74,20.0]
[1744328768443,31.20026177,112.78,112.74,20.0]
[1744328770939,31.20026177,112.78,112.74,42.30306177]
[1744328771122,8.8972,112.78,112.74,51.17276177]
[1744328771329,8.8972,112.78,112.74,42.30306177]
[1744328771530,31.20026177,112.78,112.74,42.30306177]
[1744328772842,8.8972,112.78,112.74,42.30306177]
[1744328774445,31.20026177,112.78,112.74,42.30306177]
[1744328774646,8.8972,112.78,112.74,51.17296177]
[1744328775149,8.8972,112.78,112.76,20.0]
[1744328775328,0.03,112.78,112.76,20.0]
[1744328776537,0.03,112.78,112.76,42.30306177]
[1744328776849,0.03,112.78,112.76,51.17136177]
[1744328777528,0.03,112.78,112.77,49.2548722]
[1744328779142,0.03,112.81,112.79,20.0]
[1744328779452,0.03,112.81,112.8,22.30306177]
[1744328779636,0.03,112.81,112.79,42.30306177]
[1744328781449,0.03,112.81,112.79,34.2557794]
[1744328781652,0.03,112.81,112.79,43.1214794]
[1744328781836,0.03,112.81,112.8,14.2557794]
[1744328783645,0.03,112.81,112.8,23.1209794]
[1744328784350,0.03,112.81,112.8,41.77062826]
[1744328784669,0.03,112.81,112.8,41.91278983]
[1744328784829,0.03,112.81,112.8,41.77062826]
[1744328785032,0.03,112.81,112.79,28.8656]
[1744328785233,0.03,112.81,112.8,14.2557794]
[1744328788054,0.03,112.81,112.79,43.1213794]
[1744328788563,0.03,112.81,112.79,34.2557794]
[1744328788739,0.03,112.81,112.79,20.0]
[1744328793264,0.03,112.81,112.79,43.1217794]
[1744328793442,0.03,112.81,112.8,14.2557794]
[1744328793639,0.03,112.81,112.79,28.866]
[1744328793839,0.03,112.81,112.8,14.2557794]
[1744328794243,0.03,112.81,112.8,97.59764586]
[1744328795546,0.03,112.81,112.8,106.46284586]
[1744328796464,0.03,112.82,112.81,20.0]
[1744328796762,0.03,112.82,112.81,61.49191297]
[1744328797637,0.03,112.82,112.81,70.35631297]
[1744328803281,0.03,112.82,112.81,69.92982826]
[1744328804356,0.03,112.83,112.82,27.93973357]
[1744328804563,0.03,112.83,112.82,42.19551297]
[1744328807784,0.03,112.83,112.82,41.76902826]
[1744328808870,0.03,112.83,112.82,46.14288993]
[1744328809176,0.03,112.83,112.82,41.76902826]
[1744328812462,0.03,112.85,112.84,46.0]
[1744328812659,0.03,112.85,112.84,60.2557794]
[1744328814700,0.03,112.85,112.84,69.1178794]
[1744328815957,0.03,112.85,112.84,87.76752826]
[1744328820074,0.03,112.85,112.84,88.19401297]
[1744328820683,0.03,112.85,112.84,87.76752826]
[1744328824988,0.03,112.85,112.84,95.90752826]
[1744328827484,0.03,112.85,112.84,96.33401297]
[1744328830275,0.03,112.85,112.84,95.90752826]
[1744328833593,0.03,112.85,112.84,63.0021]
[1744328833894,0.03,112.85,112.84,77.2578794]
[1744328834279,0.03,112.85,112.84,57.2578794]
[1744328835193,0.03,112.85,112.84,95.90752826]
[1744328837600,0.03,112.85,112.84,77.2578794]
[1744328839903,0.03,112.85,112.84,68.3957794]
[1744328840204,0.03,112.85,112.84,77.2578794]
[1744328845103,0.03,112.85,112.84,95.90752826]
[1744328853714,0.03,112.86,112.84,96.33401297]
[1744328853885,0.03,112.86,112.85,14.2557794]
[1744328855004,0.03,112.86,112.85,23.1170794]
[1744328859894,0.0001,112.86,112.85,99.21633057]
[1744328862209,0.03,112.87,112.85,99.21633057]
[1744328862210,0.03,112.87,112.86,39.07613357]
[1744328862417,0.03,112.87,112.86,110.35503057]
[1744328864216,0.03,112.87,112.86,119.21553057]
[1744328864927,0.03,112.87,112.86,200.21553057]
[1744328875546,0.03,112.87,112.86,142.76592826]
[1744328875739,0.03,112.87,112.86,128.51014886]
[1744328875921,0.03,112.87,112.86,142.76592826]
[1744328876817,0.03,112.87,112.86,61.76592826]
[1744328881946,0.03,112.87,112.86,43.1162794]
[1744328885854,0.03,112.87,112.86,28.8605]
[1744328886036,0.03,112.87,112.86,43.1162794]
[1744328888249,0.03,112.87,112.86,28.8605]
[1744328888452,0.03,112.87,112.86,43.1162794]
[1744328891248,0.03,112.87,112.86,51.2362794]
[1744328891427,0.03,112.87,112.86,69.88592826]
[1744328894863,0.03,112.87,112.86,55.63014886]
[1744328895052,0.03,112.87,112.86,69.88592826]
[1744328900563,0.03,112.87,112.86,127.33553057]
[1744328901053,0.03,112.87,112.86,70.31241297]
[1744328902370,0.03,112.87,112.86,69.88592826]
[1744328904861,28.72453099,112.93,112.89,26.0]
[1744328906171,28.72453099,112.93,112.89,34.8581]
[1744328906878,28.72453099,112.93,112.89,26.0]
[1744328907064,14.2557794,112.92,112.89,26.0]
[1744328908076,30.33263099,112.93,112.89,26.0]
[1744328908378,30.33263099,112.93,112.89,34.8581]
[1744328909871,14.2557794,112.92,112.88,36.9786]
[1744328910261,30.33263099,112.93,112.88,51.2343794]
[1744328913176,30.33263099,112.93,112.88,36.9786]
[1744328913360,30.33263099,112.93,112.88,51.2343794]
[1744328915777,30.33263099,112.93,112.88,31.2343794]
[1744328915987,23.1117794,112.92,112.88,16.9786]
[1744328916887,14.2557794,112.91,112.88,8.12]
[1744328917387,14.2557794,112.9,112.88,8.12]
[1744328917864,23.1138794,112.9,112.88,8.12]
[1744328918966,14.2557794,112.89,112.85,31.2367794]
[1744328919291,14.2557794,112.89,112.85,16.981]
[1744328921393,23.1140794,112.89,112.85,16.981]
[1744328924993,23.1140794,112.89,112.85,31.2367794]
[1744328926087,14.2557794,112.89,112.85,31.2367794]
[1744328927394,23.1135794,112.9,112.85,31.2367794]
[1744328928789,22.42382314,112.92,112.85,16.981]
[1744328928790,14.2557794,112.89,112.85,16.981]
[1744328928992,14.2557794,112.89,112.85,31.2367794]
[1744328930599,23.1139794,112.89,112.85,31.2367794]
[1744328930805,14.2557794,112.88,112.85,8.12]
[1744328931098,14.2557794,112.88,112.82,46.58284886]
[1744328931099,14.2557794,112.86,112.82,28.863]
[1744328931708,16.8251,112.89,112.84,14.2557794]
[1744328932000,31.0808794,112.89,112.84,23.1175794]
[1744328932371,31.0808794,112.89,112.84,8.8618]
[1744328932582,14.2557794,112.88,112.84,8.8618]
[1744328932798,31.0808794,112.89,112.84,23.1175794]
[1744328933201,23.1146794,112.88,112.84,23.1175794]
[1744328933493,23.1146794,112.88,112.83,23.1181794]
[1744328933796,14.2557794,112.85,112.82,20.0]
[1744328933995,14.2557794,112.85,112.81,17.047]
[1744328934693,14.2557794,112.85,112.81,31.3027794]
[1744328935306,23.1162794,112.86,112.81,31.3027794]
[1744328935798,14.2557794,112.85,112.81,31.3027794]
[1744328937100,23.1171794,112.85,112.81,8.183]
[1744328937894,14.2557794,112.84,112.81,8.183]
[1744328938068,8.8614,112.85,112.81,8.183]
[1744328938271,14.39794097,112.82,112.81,0.063]
[1744328938483,14.68226411,112.82,112.81,0.063]
[1744328938904,23.54586411,112.82,112.81,0.063]
[1744328941077,0.42648471,112.83,112.81,0.063]
[1744328941290,14.68226411,112.83,112.81,0.063]
[1744328943107,14.2557794,112.82,112.81,0.063]
[1744328944176,23.54536411,112.83,112.81,0.063]
[1744328944885,23.1180794,112.84,112.81,0.063]
[1744328945392,14.2557794,112.82,112.81,0.063]
[1744328947317,23.1193794,112.82,112.81,0.063]
[1744328949207,23.1185794,112.83,112.81,0.063]
[1744328949503,23.1170794,112.85,112.81,0.063]
[1744328949679,23.1165794,112.86,112.81,14.3187794]
[1744328949885,23.1165794,112.86,112.82,14.2557794]
[1744328951407,23.1165794,112.86,112.81,28.927]
[1744328951587,14.2557794,112.85,112.81,0.063]
[1744328951785,14.2557794,112.83,112.81,0.063]
[1744328952093,14.2557794,112.82,112.81,0.063]
[1744328953506,23.1193794,112.82,112.81,0.063]
[1744328960309,8.8636,112.82,112.81,0.063]
[1744328960814,23.54586411,112.82,112.81,0.063]
[1744328963595,9.29008471,112.82,112.81,0.063]
[1744328964321,23.54586411,112.82,112.81,0.063]
[1744328964500,23.1189794,112.83,112.81,0.063]
[1744328964699,8.8632,112.83,112.81,0.063]
[1744328966629,9.28878471,112.84,112.81,0.063]
[1744328967127,23.54456411,112.84,112.81,0.063]
[1744328967329,9.28878471,112.84,112.81,0.063]
[1744328967513,23.54456411,112.84,112.81,0.063]
[1744328967715,9.28878471,112.84,112.81,0.063]
[1744328967942,23.54456411,112.84,112.81,0.063]
[1744328969005,14.2557794,112.83,112.81,0.063]
[1744328970501,23.54456411,112.84,112.81,0.063]
[1744328970826,22.1519,112.86,112.81,0.063]
[1744328970827,23.25764097,112.87,112.83,14.2557794]
[1744328971029,9.00186157,112.87,112.83,14.2557794]
[1744328972538,8.8591,112.88,112.84,14.2557794]
[1744328972840,9.00066157,112.89,112.85,14.2557794]
[1744328975034,8.8585,112.89,112.85,14.2557794]
[1744328975223,8.8585,112.89,112.85,23.1170794]
[1744328975726,8.8585,112.89,112.86,14.2557794]
[1744328976029,9.14162314,112.9,112.86,14.2557794]
[1744328976215,9.14162314,112.9,112.86,15.7637794]
[1744328976414,8.8573,112.9,112.87,22.3757794]
[1744328977120,8.8573,112.9,112.87,8.12]
[1744328977841,14.2557794,112.89,112.87,8.12]
[1744328978017,23.1143794,112.89,112.86,1.508]
[1744328978222,8.8586,112.89,112.86,1.508]
[1744328980938,23.1143794,112.89,112.86,1.508]
[1744328981237,8.8586,112.89,112.86,1.508]
[1744328983045,14.2557794,112.9,112.86,1.508]
[1744328983640,30.9957,112.92,112.86,1.508]
[1744328983843,14.2557794,112.9,112.86,1.508]
[1744328984522,23.1115794,112.92,112.87,14.2557794]
[1744328984722,14.2557794,112.91,112.87,14.2557794]
[1744328985043,23.1126794,112.91,112.87,14.2557794]
[1744328985224,8.8569,112.91,112.87,14.2557794]
[1744328986220,23.1126794,112.91,112.86,1.508]
[1744328986435,14.2557794,112.9,112.86,1.508]
[1744328986629,14.2557794,112.9,112.86,15.7637794]
[1744328986942,23.1126794,112.91,112.86,15.7637794]
[1744328987144,23.1126794,112.91,112.86,24.6241794]
[1744328987744,14.2557794,112.9,112.86,24.6241794]
[1744328988133,14.2557794,112.9,112.86,15.7637794]
[1744328989549,14.2557794,112.9,112.86,24.6241794]
[1744328989749,23.1132794,112.9,112.86,24.6241794]
[1744328990139,45.923,112.94,112.86,24.6241794]
[1744328990140,0.03,112.94,112.9,1.5363]
[1744328990336,0.03,112.94,112.91,14.2557794]
[1744328991251,8.8846,112.94,112.91,14.2557794]
[1744328992342,8.8846,112.94,112.9,23.9120794]
[1744328993140,8.8846,112.94,112.9,49.9120794]
[1744328993351,8.8846,112.94,112.9,23.9120794]
[1744328993536,23.1403794,112.94,112.9,23.9120794]
[1744328993848,23.1403794,112.94,112.9,9.6563]
[1744328995551,14.2557794,112.92,112.87,16.1798]
[1744328995725,14.2557794,112.92,112.87,30.4355794]
[1744328995926,14.2557794,112.92,112.87,39.2951794]
[1744328996651,0.42648471,112.93,112.88,14.2557794]
[1744328996837,8.8558,112.92,112.88,14.2557794]
[1744328999856,23.1115794,112.92,112.87,25.0394]
[1744329000057,23.1115794,112.92,112.88,14.2557794]
[1744329000263,8.8558,112.92,112.88,14.2557794]
[1744329000443,23.1115794,112.92,112.88,14.2557794]
[1744329000957,8.8558,112.92,112.88,14.2557794]
[1744329001456,23.1115794,112.92,112.87,30.4355794]
[1744329001961,23.1115794,112.92,112.88,14.2557794]
[1744329002164,23.1115794,112.92,112.87,30.4355794]
[1744329002332,14.68226411,112.91,112.87,16.1798]
[1744329002534,14.2557794,112.9,112.87,9.6919]
[1744329003071,14.68226411,112.91,112.87,1.5719]
[1744329003857,23.53956411,112.91,112.87,1.5719]
[1744329004053,8.8573,112.91,112.87,24.6871794]
[1744329004261,8.855,112.93,112.88,20.6321794]
[1744329004443,23.1107794,112.93,112.88,20.6321794]
[1744329005642,8.855,112.93,112.89,14.2557794]
[1744329007139,8.855,112.93,112.89,8.1]
[1744329007360,23.1107794,112.93,112.89,8.1]
[1744329008965,14.68226411,112.92,112.89,8.1]
[1744329009259,14.2557794,112.91,112.87,1.5719]
[1744329009766,14.2557794,112.91,112.87,15.8276794]
[1744329010161,8.8573,112.9,112.88,14.2557794]
[1744329010367,8.855,112.93,112.89,22.3557794]
[1744329010664,8.8846,112.94,112.91,14.2557794]
[1744329011856,8.8846,112.94,112.89,14.4764]
[1744329012064,23.1403794,112.94,112.89,28.7321794]
[1744329012268,8.8846,112.94,112.9,14.2557794]
[1744329013872,8.8846,112.94,112.9,14.2557794]
[1744329014868,8.8846,112.94,112.89,14.4764]
[1744329015066,8.8846,112.94,112.9,14.2557794]
[1744329016868,23.1403794,112.94,112.89,28.7321794]
[1744329017066,0.42648471,112.93,112.89,28.7321794]
[1744329017277,14.68226411,112.93,112.89,8.1]
[1744329018348,8.8558,112.92,112.89,8.1]
[1744329018663,9.28178471,112.93,112.89,22.3557794]
[1744329019168,8.8846,112.94,112.9,14.2557794]
[1744329019771,8.8846,112.94,112.91,14.2557794]
[1744329020171,8.8846,112.94,112.9,14.2557794]
[1744329020570,8.8846,112.94,112.91,14.2557794]
[1744329020571,0.03,112.94,112.91,14.2557794]
[1744329020967,0.03,112.94,112.9,8.8568]
[1744329021359,0.03,112.94,112.91,14.2557794]
[1744329022477,0.03,112.94,112.89,16.9579]
[1744329022681,0.03,112.94,112.9,14.2557794]
[1744329023575,0.03,112.94,112.91,14.2557794]
[1744329023959,0.03,112.94,112.9,23.1129794]
[1744329024776,0.03,112.94,112.91,14.2557794]
[1744329025497,0.03,112.94,112.89,16.9578]
[1744329025782,0.03,112.94,112.9,14.2557794]
[1744329026155,14.57010254,112.94,112.89,22.3557794]
[1744329027079,0.42648471,112.92,112.89,8.1]
[1744329027269,14.68226411,112.92,112.89,8.1]
[1744329027456,8.8566,112.91,112.89,8.1]
[1744329027659,23.1123794,112.91,112.89,8.1]
[1744329028168,8.8566,112.91,112.89,8.1]
[1744329030083,14.68226411,112.9,112.85,311.82]
[1744329030272,14.2557794,112.89,112.85,311.82]
[1744329030477,14.68226411,112.9,112.85,326.0757794]
[1744329030677,0.42648471,112.9,112.85,326.0757794]
[1744329031167,14.68226411,112.9,112.85,326.0757794]
[1744329031587,8.8581,112.89,112.85,326.0757794]
[1744329031978,0.5,112.93,112.87,14.2557794]
[1744329031979,14.68226411,112.92,112.87,14.2557794]
[1744329033074,14.2557794,112.91,112.85,36.9613]
[1744329033478,14.2557794,112.91,112.87,14.2557794]
[1744329034787,8.8573,112.9,112.86,14.2557794]
[1744329035985,8.8573,112.9,112.85,36.9613]
[1744329036289,8.8573,112.9,112.86,14.2557794]
[1744329038891,8.8573,112.9,112.85,36.9613]
[1744329039184,23.1130794,112.9,112.85,22.3557794]
[1744329039486,0.42648471,112.89,112.85,22.3557794]
[1744329039863,14.68226411,112.89,112.85,22.3557794]
[1744329040063,0.42648471,112.89,112.85,22.3557794]
[1744329040768,0.42648471,112.89,112.86,14.2557794]
[1744329041385,8.8589,112.88,112.86,14.2557794]
[1744329041765,8.8589,112.88,112.85,22.3557794]
[1744329043998,9.28488471,112.89,112.86,14.2557794]
[1744329044895,9.28488471,112.89,112.85,8.1]
[1744329045086,9.28488471,112.89,112.86,14.2557794]
[1744329045901,9.28488471,112.89,112.85,22.3557794]
[1744329049591,9.28488471,112.89,112.86,14.2557794]
[1744329050176,23.54066411,112.89,112.85,8.1]
[1744329050379,23.54066411,112.89,112.85,22.3557794]
[1744329050799,23.54066411,112.89,112.85,8.1]
[1744329050999,23.54066411,112.89,112.85,22.3557794]
[1744329051919,14.2557794,112.88,112.84,14.3187794]
[1744329052709,45.68606411,112.89,112.84,14.3187794]
[1744329053009,23.54066411,112.89,112.85,14.2557794]
[1744329053307,9.28488471,112.89,112.85,14.2557794]
[1744329054005,8.8584,112.89,112.85,14.2557794]
[1744329054211,8.8584,112.89,112.87,14.2557794]
[1744329054824,0.14216157,112.91,112.88,14.2557794]
[1744329055315,0.14216157,112.91,112.87,14.2557794]
[1744329055611,0.42648471,112.91,112.87,14.2557794]
[1744329055913,9.28338471,112.91,112.87,14.2557794]
[1744329056111,23.53916411,112.91,112.87,14.2557794]
[1744329056317,0.14216157,112.9,112.86,22.3557794]
[1744329057289,0.14216157,112.9,112.87,14.2557794]
[1744329057693,0.14216157,112.9,112.86,22.3557794]
[1744329058307,8.8581,112.89,112.87,14.2557794]
[1744329058505,8.8573,112.9,112.87,14.2557794]
[1744329064909,8.8573,112.9,112.86,22.3557794]
[1744329065718,0.42648471,112.89,112.86,8.1]
[1744329066017,0.42648471,112.87,112.84,0.063]
[1744329066230,14.2557794,112.86,112.84,0.063]
[1744329066620,0.42648471,112.87,112.84,0.063]
[1744329066824,23.1162794,112.86,112.84,0.063]
[1744329067120,8.8605,112.86,112.84,0.063]
[1744329076034,8.8589,112.88,112.84,0.063]
[1744329076233,8.8589,112.88,112.85,14.2557794]
[1744329076415,8.8589,112.88,112.84,14.3187794]
[1744329076614,23.1146794,112.88,112.84,14.3187794]
[1744329076815,8.8589,112.88,112.84,14.3187794]
[1744329077631,23.1146794,112.88,112.84,0.063]
[1744329077937,23.1146794,112.88,112.84,14.3187794]
[1744329079118,8.8589,112.88,112.84,14.3187794]
[1744329079317,8.8589,112.88,112.85,14.2557794]
[1744329079625,8.99946157,112.9,112.86,14.2557794]
[1744329080016,8.99946157,112.9,112.87,14.2557794]
[1744329080223,8.8573,112.9,112.88,14.2557794]
[1744329080424,8.99716157,112.93,112.89,14.2557794]
[1744329080625,8.99716157,112.93,112.9,14.2557794]
[1744329080838,8.99716157,112.93,112.89,14.2557794]
[1744329081041,23.25294097,112.93,112.89,14.2557794]
[1744329081243,8.99716157,112.93,112.89,14.2557794]
[1744329081635,23.25294097,112.93,112.89,14.2557794]
[1744329081834,0.28432314,112.92,112.88,14.2557794]
[1744329083252,8.8566,112.91,112.88,14.2557794]
[1744329086050,23.1123794,112.91,112.87,14.2557794]
[1744329086846,14.68226411,112.9,112.85,8.1]
[1744329087048,14.2557794,112.89,112.85,22.3557794]
[1744329087255,14.2557794,112.88,112.84,1.6592]
[1744329087437,14.68226411,112.87,112.84,0.063]
[1744329087634,0.42648471,112.87,112.84,0.063]
[1744329087825,0.42648471,112.87,112.84,14.3187794]
[1744329088028,9.28688471,112.87,112.84,14.3187794]
[1744329088850,9.28688471,112.87,112.84,0.063]
[1744329092459,9.28688471,112.87,112.84,14.3187794]
[1744329093756,9.28688471,112.87,112.84,0.063]
[1744329094656,23.54266411,112.87,112.84,0.063]
[1744329094852,8.8604,112.87,112.84,0.063]
[1744329095035,23.1161794,112.87,112.84,0.063]
[1744329096666,14.68226411,112.86,112.84,0.063]
[1744329097367,31.0097,112.87,112.84,0.063]
[1744329097659,31.0097,112.87,112.83,13.8187794]
[1744329097860,14.68226411,112.86,112.82,0.063]
[1744329098163,14.2557794,112.85,112.82,0.063]
[1744329098466,14.68226411,112.86,112.82,0.063]
[1744329098759,8.8613,112.85,112.82,0.063]
[1744329099636,8.8613,112.85,112.82,14.3187794]
[1744329099837,8.8613,112.85,112.82,0.063]
[1744329100857,8.8613,112.85,112.82,14.3187794]
[1744329101045,9.28738471,112.86,112.83,14.2557794]
[1744329103338,0.14216157,112.89,112.85,14.2557794]
[1744329103544,8.8573,112.9,112.85,14.2557794]
[1744329103863,8.8573,112.9,112.87,14.2557794]
[1744329105567,8.8573,112.9,112.86,14.2557794]
[1744329106065,14.2557794,112.88,112.83,14.7337]
[1744329106256,14.2557794,112.88,112.84,14.2557794]
[1744329106257,0.42648471,112.87,112.84,14.2557794]
[1744329106851,0.42648471,112.87,112.85,14.2557794]
[1744329107169,14.68226411,112.89,112.85,14.2557794]
[1744329107342,8.8589,112.88,112.85,14.2557794]
[1744329108747,8.8589,112.88,112.83,16.9627]
[1744329108946,8.8589,112.88,112.85,14.2557794]
[1744329109354,8.8589,112.88,112.86,14.2557794]
[1744329110451,8.8589,112.88,112.83,8.1]
[1744329110773,8.8589,112.88,112.84,14.2557794]
[1744329112771,0.42648471,112.87,112.84,14.2557794]
[1744329112972,0.42648471,112.87,112.82,0.063]
[1744329112973,14.68226411,112.85,112.82,0.063]
[1744329113265,14.68226411,112.83,112.82,0.063]